fUST/lending_fUST_20240517
["ID","MTS","AMOUNT","RATE_DAILY","PERIOD"]
[327266823,1715951440857,-500.0,0.00017808,2]
[327266825,1715951440866,-500.0,0.00017808,2]
[327266827,1715951440876,-2331.58,0.00017808,2]
[327266829,1715951440886,-500.0,0.00017808,2]
[327266831,1715951440895,-500.0,0.00017808,2]
[327266833,1715951440904,-1911.81,0.00017808,2]
[327266835,1715951440916,-3815.03,0.00017808,2]
[327266837,1715951440925,-8421.72,0.00017808,2]
[327266839,1715951440934,-500.0,0.00017808,2]
[327266841,1715951440944,-500.0,0.00017808,2]
[327266843,1715951440956,-500.0,0.00017895,2]
[327266846,1715951440968,-3097.84535399,0.00017897,3]
[327266848,1715951440980,-3000.0,0.00017897,2]
[327266850,1715951440992,-3000.0,0.00017897,2]
[327266853,1715951441004,-1600.99681665,0.00017897,2]
[327266855,1715951441016,-548.07,0.00017897,2]
[327266857,1715951441027,-10448.86120355,0.00017898,2]
[327266859,1715951441037,-150.0,0.00017939,2]
[327266861,1715951441047,-150.0,0.00017991,2]
[327266863,1715951441060,-895.80593484,0.00018,2]
[327266866,1715951441071,-189.86799103,0.00018,2]
[327266868,1715951441082,-500.0,0.00018081,2]
[327266870,1715951441094,-500.0,0.00018082,2]
[327266872,1715951441105,-390.15,0.00018082,2]
[327266874,1715951441116,-510.52746801,0.00018082,2]
[327266877,1715951441128,-2331.58,0.00018082,2]
[327266879,1715951441139,-500.0,0.00018082,2]
[327266881,1715951441150,-500.0,0.00018082,2]
[327266883,1715951441161,-1911.81,0.00018082,2]
[327266886,1715951441173,-3815.03,0.00018082,2]
[327266888,1715951441185,-8421.72,0.00018082,2]
[327266890,1715951441196,-500.0,0.00018082,2]
[327266892,1715951441208,-500.0,0.00018082,2]
[327266894,1715951441219,-500.0,0.00018145,2]
[327266897,1715951441230,-150.0,0.00018145,2]
[327266898,1715951441240,-1606.65624612,0.00018312,2]
[327266899,1715951441251,-150.0,0.00018352,2]
[327266900,1715951441263,-548.07,0.00018355,2]
[327266901,1715951441274,-500.0,0.00018356,2]
[327266902,1715951441284,-2331.58,0.00018356,2]
[327266903,1715951441296,-500.0,0.00018356,2]
[327266904,1715951441309,-500.0,0.00018356,2]
[327266905,1715951441320,-1911.81,0.00018356,2]
[327266906,1715951441331,-3815.03,0.00018356,2]
[327266907,1715951441342,-8421.72,0.00018356,2]
[327266908,1715951441353,-500.0,0.00018356,2]
[327266909,1715951441363,-500.0,0.00018356,2]
[327266910,1715951441373,-600.0,0.00018411,2]
[327266911,1715951441383,-306.0,0.00018522,2]
[327266912,1715951441392,-150.0,0.00018558,2]
[327266913,1715951441404,-600.0,0.00018603,2]
[327266914,1715951441415,-500.0,0.00018629,2]
[327266915,1715951441424,-500.0,0.00018629,2]
[327266916,1715951441435,-235.92995501,0.0001863,2]
[327266917,1715951441447,-2331.58,0.0001863,2]
[327266918,1715951441458,-500.0,0.0001863,2]
[327266920,1715951441469,-444.77082011,0.0001863,2]
[327266922,1715951441480,-1911.81,0.0001863,2]
[327266923,1715951441491,-3815.03,0.0001863,2]
[327266924,1715951441501,-8421.72,0.0001863,2]
[327266926,1715951441512,-500.0,0.0001863,2]
[327266927,1715951441524,-500.0,0.0001863,2]
[327266928,1715951441535,-260.91918383,0.00018669,2]
[327266929,1715951441547,-4221.46001999,0.00018739,2]
[327266930,1715951441560,-500.11958888,0.0001875,2]
[327266931,1715951441572,-150.0,0.00018765,2]
[327266932,1715951441582,-493.04170417,0.00018778,2]
[327266933,1715951441592,-600.0,0.00018794,2]
[327266934,1715951441602,-2000.0,0.00018878,2]
[327266935,1715951441611,-1606.65624612,0.00018879,2]
[327266936,1715951441621,-416.98047207,0.00018891,2]
[327266937,1715951441631,-294.31053376,0.00018898,2]
[327266938,1715951441641,-154.93787338,0.00018899,2]
[327266939,1715951441652,-548.07,0.00018899,2]
[327266940,1715951441664,-5923.66177082,0.000189,2]
[327266941,1715951441675,-776.03505824,0.00018902,2]
[327266942,1715951441686,-264.232499,0.00018902,2]
[327266943,1715951441698,-500.0,0.00018903,2]
[327266944,1715951441708,-326.48188349,0.00018904,2]
[327266945,1715951441718,-2331.58,0.00018904,2]
[327266946,1715951441728,-500.0,0.00018904,2]
[327266947,1715951441739,-1096.64199964,0.00018904,2]
[327266948,1715951441832,-528.76307526,0.00016437,2]
[327266949,1715951441847,-1395.06,0.00016712,2]
[327266950,1715951441858,-1395.06,0.00016986,2]
[327266951,1715951441869,-1395.06,0.0001726,2]
[327266952,1715951441881,-1395.06,0.00017534,2]
[327266953,1715951441892,-1395.06,0.00017808,2]
[327266954,1715951441903,-815.16800036,0.00018904,2]
[327266955,1715951441912,-3464.95575157,0.00018904,2]
[327267162,1715951444010,-500.0,0.00016438,2]
[327267164,1715951444020,-1395.06,0.00018082,2]
[327267166,1715951444032,-1395.06,0.00018356,2]
[327267168,1715951444043,-1395.06,0.0001863,2]
[327267170,1715951444054,-350.07424843,0.00018904,2]
[327267172,1715951444066,-2059.2068932,0.00018904,2]
[327267882,1715951566301,410.4004372,9.999e-05,2]
[327267883,1715951608763,1000.0,0.000188,9]
[327267884,1715951622622,1716.62098532,9.999e-05,2]
[327267885,1715951685008,1000.0,0.000188,9]
[327267886,1715951691608,154.7215013,9.999e-05,2]
[327267887,1715951732548,1094.84700582,9.999e-05,2]
[327267889,1715951747445,150.72868836,0.0002258,120]
[327267890,1715951755554,521.13198416,9.999e-05,2]
[327267892,1715951911431,224.38826362,9.999e-05,2]
[327267893,1715951914390,658.06565203,9.999e-05,2]
[327267894,1715952003436,1043.11503847,9.999e-05,2]
[327267895,1715952004175,6921.8532392,0.00014795,2]
[327267896,1715952005341,1148.90229176,0.00015,2]
[327267897,1715952005596,1090.133576,0.00014795,2]
[327267898,1715952015412,154.82968734,9.999e-05,2]
[327267899,1715952032004,2040.87288577,9.999e-05,2]
[327267900,1715952055354,155.05539799,9.999e-05,2]
[327267901,1715952080095,1350.24290286,9.999e-05,2]
[327267902,1715952110717,154.7215013,9.999e-05,2]
[327267903,1715952113452,281.51026705,9.999e-05,2]
[327267904,1715952114167,1716.62098532,9.999e-05,2]
[327267905,1715952121431,653.4309196,0.00014741,2]
[327267906,1715952124527,443.01,0.00010959,2]
[327267908,1715952127416,326.98873808,9.999e-05,2]
[327267909,1715952131794,1338.74026793,9.999e-05,2]
[327267910,1715952135088,167.8,0.00010959,2]
[327267911,1715952145641,839.05,0.00010959,2]
[327267912,1715952146211,909.92139519,0.00014792,2]
[327267913,1715952150095,1084.37016178,0.000138,2]
[327267914,1715952153813,273.37336231,9.9e-05,2]
[327267915,1715952164864,19241.62943188,9.999e-05,2]
[327267916,1715952167004,273.37336231,9.9e-05,2]
[327267917,1715952176017,273.37336231,9.9e-05,2]
[327267918,1715952188796,273.37336231,9.9e-05,2]
[327267919,1715952220834,9658.97501648,9.9e-05,2]
[327267925,1715952269655,1094.84700582,9.999e-05,2]
[327267926,1715952324350,401.15888563,0.00016438,7]
[327267927,1715952328948,150.72868836,0.00022623,120]
[327267928,1715952361206,528.90830868,9.999e-05,2]
[327267929,1715952371358,932.27671008,0.0001438,2]
[327267930,1715952373537,991.308585,0.00014866,2]
[327267951,1715952443733,444.8132716,0.00014261,2]
[327267952,1715952449100,-2596.99709495,0.00015135,2]
[327267953,1715952449122,-94.47042042,0.00015135,2]
[327267954,1715952471214,24900.0,0.00014137,2]
[327267967,1715952579614,631.799188,0.00014136,2]
[327267968,1715952587530,1957.19789381,0.00014141,2]
[327267969,1715952587553,304.04072389,0.00014141,2]
[327267994,1715952633582,-2114.19374467,0.00015126,2]
[327267995,1715952633592,-10507.25045734,0.00015126,2]
[327267997,1715952633602,-2678.41581431,0.00015127,2]
[327267999,1715952633611,-1885.19395395,0.00015128,2]
[327268001,1715952633621,-2593.74872208,0.00015135,2]
[327268003,1715952633630,-362.44648882,0.00015137,2]
[327268005,1715952633639,-835.08477091,0.00015137,2]
[327268007,1715952633648,-32657.41208118,0.00015137,2]
[327268010,1715952633660,-1453.99588173,0.00015137,2]
[327268041,1715952633871,-21.62299965,0.00015137,2]
[327268043,1715952633881,-2615.62744249,0.00015139,2]
[327268045,1715952633894,-1670.99319192,0.00015139,2]
[327268047,1715952633905,-1284.5294023,0.00015139,2]
[327268050,1715952633916,-2761.42464324,0.00015139,2]
[327268052,1715952633928,-738.32909802,0.00015139,2]
[327268061,1715952634012,-441.04596982,0.00015139,2]
[327268064,1715952634023,-6623.3,0.00015139,2]
[327268066,1715952634035,-5553.70810354,0.00015139,2]
[327268171,1715952639140,-2604.03002138,0.00015139,2]
[327268172,1715952639150,-525.38859041,0.00015151,2]
[327268173,1715952639160,-162.79748513,0.00015163,2]
[327268174,1715952639170,-250.58807529,0.000159,2]
[327268175,1715952639179,-162.79748512,0.00016338,2]
[327268176,1715952639189,-909.36767764,0.00016435,2]
[327268177,1715952639200,-154.81422293,0.00016435,2]
[327268178,1715952639211,-181.94044451,0.00016435,2]
[327268179,1715952639220,-155.03875412,0.00016435,2]
[327268180,1715952639230,-817.80441059,0.00016435,2]
[327268181,1715952639239,-261.071768,0.00016435,2]
[327268182,1715952639250,-1042.61452725,0.00016435,2]
[327268183,1715952639259,-335.9108112,0.00016435,2]
[327268184,1715952639269,-155.2958884,0.00016435,2]
[327268185,1715952639281,-460.09707245,0.00016435,2]
[327268186,1715952639295,-721.13193306,0.00016435,2]
[327268187,1715952639306,-284.88862026,0.00016435,2]
[327268188,1715952639319,-154.82968734,0.00016435,2]
[327268189,1715952639330,-702.19428712,0.00016435,2]
[327268190,1715952639341,-1721.9609189,0.00016435,2]
[327268191,1715952639351,-154.98428516,0.00016435,2]
[327268192,1715952639362,-405.55286217,0.00016435,2]
[327268193,1715952639380,-116.44192943,0.00016435,2]
[327268194,1715952639391,-155.02628739,0.00016435,2]
[327268195,1715952639401,-247.19404712,0.00016435,2]
[327268196,1715952639414,-369.62599702,0.00016435,2]
[327268197,1715952639424,-458.65315992,0.00016435,2]
[327268198,1715952639434,-928.88343827,0.00016435,2]
[327268199,1715952639447,-164.94288442,0.00016435,2]
[327268200,1715952639458,-457.84868976,0.00016436,2]
[327268201,1715952639468,-154.93785178,0.00016436,2]
[327268202,1715952639478,-2014.79452069,0.00016436,2]
[327268203,1715952639488,-154.82968734,0.00016436,2]
[327268204,1715952639499,-155.12188961,0.00016436,2]
[327268206,1715952639510,-164.2356224,0.00016437,2]
[327268207,1715952639520,-1193.90759782,0.00016437,2]
[327268208,1715952639531,-500.0,0.00016438,2]
[327268209,1715952639541,-508.46671421,0.00016438,2]
[327268210,1715952639551,-319.91055385,0.00016438,2]
[327268211,1715952639561,-500.0,0.00016438,2]
[327268212,1715952639575,-500.0,0.00016438,2]
[327268213,1715952639585,-169.96149642,0.00016438,2]
[327268214,1715952639595,-500.0,0.00016438,2]
[327268215,1715952639605,-500.0,0.00016438,2]
[327268216,1715952639616,-500.0,0.00016438,2]
[327268217,1715952639626,-500.0,0.00016438,2]
[327268218,1715952639637,-500.0,0.00016438,2]
[327268219,1715952639648,-500.0,0.00016438,2]
[327268220,1715952639658,-500.0,0.00016438,2]
[327268221,1715952639668,-500.0,0.00016438,2]
[327268222,1715952639677,-500.0,0.00016438,2]
[327268224,1715952639687,-500.0,0.00016438,2]
[327268226,1715952639697,-328.4580665,0.00016438,2]
[327268228,1715952639707,-500.0,0.00016438,2]
[327268230,1715952639717,-500.0,0.00016438,2]
[327268232,1715952639727,-500.0,0.00016438,2]
[327268234,1715952639737,-500.0,0.00016438,2]
[327268236,1715952639747,-500.0,0.00016438,2]
[327268238,1715952639757,-500.0,0.00016438,2]
[327268240,1715952639767,-539.9804604,0.00016438,2]
[327268242,1715952639777,-1733.67,0.00016438,2]
[327268244,1715952639787,-500.0,0.00016438,2]
[327268246,1715952639797,-500.0,0.00016438,2]
[327268248,1715952639807,-500.0,0.00016438,2]
[327268250,1715952639818,-500.0,0.00016438,2]
[327268252,1715952639828,-500.0,0.00016438,2]
[327268253,1715952639838,-500.0,0.00016438,2]
[327268254,1715952639847,-304.9623392,0.00016438,2]
[327268255,1715952639857,-500.0,0.00016438,2]
[327268256,1715952639868,-500.0,0.00016438,2]
[327268257,1715952639878,-303.8,0.00016438,2]
[327268258,1715952639888,-502.20492678,0.00016438,2]
[327268259,1715952639898,-500.0,0.00016438,2]
[327268260,1715952639908,-505.32350337,0.00016438,2]
[327268261,1715952639918,-501.05433035,0.00016438,2]
[327268262,1715952639928,-502.21056491,0.00016438,2]
[327268263,1715952639939,-501.78677475,0.00016438,2]
[327268264,1715952639949,-500.0,0.00016438,2]
[327268265,1715952639960,-500.0,0.00016438,2]
[327268266,1715952639970,-589.51951981,0.00016438,2]
[327268267,1715952639980,-500.0,0.00016438,4]
[327268268,1715952639991,-1080.41,0.00016438,2]
[327268269,1715952640001,-500.0,0.00016438,2]
[327268270,1715952640011,-500.0,0.00016438,2]
[327268271,1715952640020,-500.0,0.00016438,2]
[327268272,1715952640031,-502.29771368,0.00016438,2]
[327268273,1715952640040,-500.0,0.00016438,2]
[327268274,1715952640051,-503.5,0.00016438,2]
[327268275,1715952640061,-503.5,0.00016438,2]
[327268276,1715952640072,-500.0,0.00016438,2]
[327268277,1715952640080,-500.0,0.00016438,2]
[327268278,1715952640089,-500.0,0.00016438,2]
[327268279,1715952640097,-510.74930335,0.00016438,2]
[327268280,1715952640106,-500.0,0.00016438,2]
[327268281,1715952640115,-500.0,0.00016438,2]
[327268282,1715952640122,-501.25720095,0.00016438,2]
[327268283,1715952640131,-557.72,0.00016438,2]
[327268284,1715952640140,-546.60304038,0.00016438,2]
[327268286,1715952640148,-500.0,0.00016438,2]
[327268288,1715952640158,-500.0,0.00016438,2]
[327268290,1715952640169,-500.0,0.00016438,2]
[327268291,1715952640179,-500.0,0.00016438,2]
[327268292,1715952640189,-500.0,0.00016438,2]
[327268293,1715952640203,-500.0,0.00016438,2]
[327268294,1715952640212,-500.0,0.00016438,2]
[327268295,1715952640223,-500.0,0.00016438,2]
[327268296,1715952640235,-502.11095164,0.00016438,2]
[327268297,1715952640245,-500.0,0.00016438,2]
[327268298,1715952640255,-502.15949804,0.00016438,2]
[327268299,1715952640266,-500.0,0.00016438,2]
[327268300,1715952640278,-538.70729869,0.00016438,2]
[327268301,1715952640288,-546.81685219,0.00016438,2]
[327268302,1715952640298,-5021.79,0.00016438,2]
[327268303,1715952640308,-501.03023719,0.00016438,2]
[327268304,1715952640318,-500.0,0.00016438,2]
[327268305,1715952640328,-488.04384634,0.00016438,2]
[327268306,1715952640337,-500.0,0.00016438,2]
[327268307,1715952640347,-500.0,0.00016438,2]
[327268308,1715952640356,-500.0,0.00016438,2]
[327268309,1715952640366,-500.0,0.00016438,2]
[327268310,1715952640377,-500.0,0.00016438,2]
[327268311,1715952640386,-500.0,0.00016438,2]
[327268313,1715952640397,-501.92052098,0.00016438,2]
[327268314,1715952640407,-500.0,0.00016438,2]
[327268315,1715952640417,-500.0,0.00016438,2]
[327268316,1715952640428,-162.76,0.00016438,2]
[327268317,1715952640438,-1342.19,0.00016438,2]
[327268318,1715952640447,-500.0,0.00016438,2]
[327268319,1715952640457,-500.0,0.00016438,2]
[327268320,1715952640467,-503.19134379,0.00016438,2]
[327268321,1715952640476,-500.0,0.00016438,2]
[327268322,1715952640486,-577.84,0.00016438,2]
[327268323,1715952640495,-500.0,0.00016438,2]
[327268324,1715952640504,-500.0,0.00016438,2]
[327268325,1715952640514,-500.0,0.00016438,2]
[327268326,1715952640523,-503.05824176,0.00016438,2]
[327268327,1715952640533,-4435.79,0.00016438,2]
[327268328,1715952640542,-500.0,0.00016438,2]
[327268329,1715952640551,-292.60916471,0.00016438,2]
[327268330,1715952640561,-504.03311653,0.00016438,2]
[327268331,1715952640574,-500.0,0.00016438,2]
[327268332,1715952640583,-10560.62,0.00016438,2]
[327268333,1715952640593,-500.52781819,0.00016438,2]
[327268334,1715952640603,-500.0,0.00016438,2]
[327268335,1715952640612,-500.0,0.00016438,2]
[327268336,1715952640623,-500.0,0.00016438,2]
[327268337,1715952640632,-500.0,0.00016438,2]
[327268338,1715952640642,-500.0,0.00016438,2]
[327268339,1715952640652,-1093.66,0.00016438,2]
[327268340,1715952640663,-500.0,0.00016438,2]
[327268341,1715952640673,-625.57,0.00016438,2]
[327268342,1715952640682,-501.42812798,0.00016438,2]
[327268343,1715952640691,-500.0,0.00016438,2]
[327268344,1715952640699,-569.65179403,0.00016438,2]
[327268345,1715952640706,-500.0,0.00016438,2]
[327268346,1715952640713,-500.0,0.00016438,2]
[327268347,1715952640722,-500.0,0.00016438,2]
[327268348,1715952640729,-500.0,0.00016438,2]
[327268349,1715952640737,-464.37156724,0.00016438,2]
[327268350,1715952640744,-500.0,0.00016438,2]
[327268351,1715952640752,-531.82153831,0.00016438,2]
[327268352,1715952640759,-500.0,0.00016438,2]
[327268353,1715952640769,-165.28980394,0.00016438,2]
[327268354,1715952640778,-500.0,0.00016438,2]
[327268355,1715952640788,-273.93944197,0.000165,2]
[327268356,1715952640797,-503.5,0.00016711,2]
[327268357,1715952640806,-8695.58631652,0.00016712,3]
[327268358,1715952640815,-500.0,0.00016712,2]
[327268359,1715952640828,-500.0,0.00016712,2]
[327268360,1715952640837,-500.0,0.00016712,2]
[327268361,1715952640846,-500.0,0.00016712,2]
[327268362,1715952640855,-500.0,0.00016712,2]
[327268363,1715952640864,-500.0,0.00016712,2]
[327268364,1715952640873,-500.0,0.00016712,2]
[327268365,1715952640882,-500.0,0.00016712,2]
[327268366,1715952640892,-532.34675723,0.00016712,2]
[327268367,1715952640901,-500.0,0.00016712,2]
[327268368,1715952640911,-500.0,0.00016712,2]
[327268369,1715952640920,-500.0,0.00016712,2]
[327268370,1715952640929,-500.0,0.00016712,2]
[327268371,1715952640938,-500.0,0.00016712,2]
[327268372,1715952640947,-1733.67,0.00016712,2]
[327268373,1715952640957,-500.0,0.00016712,2]
[327268374,1715952640967,-500.0,0.00016712,2]
[327268375,1715952640976,-500.0,0.00016712,2]
[327268376,1715952640985,-500.0,0.00016712,2]
[327268377,1715952640994,-519.09,0.00016712,2]
[327268378,1715952641004,-500.0,0.00016712,2]
[327268379,1715952641013,-500.0,0.00016712,2]
[327268380,1715952641022,-500.0,0.00016712,4]
[327268381,1715952641031,-1080.41,0.00016712,2]
[327268382,1715952641041,-500.0,0.00016712,2]
[327268383,1715952641050,-500.0,0.00016712,2]
[327268384,1715952641060,-500.0,0.00016712,2]
[327268385,1715952641073,-500.0,0.00016712,2]
[327268386,1715952641083,-500.0,0.00016712,2]
[327268387,1715952641093,-500.0,0.00016712,2]
[327268388,1715952641103,-500.0,0.00016712,2]
[327268389,1715952641112,-500.0,0.00016712,2]
[327268390,1715952641121,-616.88,0.00016712,2]
[327268391,1715952641130,-500.0,0.00016712,2]
[327268392,1715952641139,-387.1,0.00016712,2]
[327268393,1715952641149,-500.0,0.00016712,2]
[327268394,1715952641158,-500.0,0.00016712,2]
[327268395,1715952641168,-5021.79,0.00016712,2]
[327268396,1715952641178,-500.0,0.00016712,2]
[327268397,1715952641187,-500.0,0.00016712,2]
[327268398,1715952641198,-500.0,0.00016712,2]
[327268399,1715952641211,-500.0,0.00016712,2]
[327268400,1715952641221,-500.0,0.00016712,2]
[327268401,1715952641230,-500.0,0.00016712,2]
[327268402,1715952641240,-500.0,0.00016712,2]
[327268403,1715952641249,-1342.19,0.00016712,2]
[327268404,1715952641259,-500.0,0.00016712,2]
[327268405,1715952641268,-500.0,0.00016712,2]
[327268406,1715952641278,-500.0,0.00016712,2]
[327268407,1715952641290,-577.84,0.00016712,2]
[327268408,1715952641300,-500.0,0.00016712,2]
[327268409,1715952641309,-620.64143047,0.00016712,2]
[327268410,1715952641322,-4435.79,0.00016712,2]
[327268411,1715952641331,-500.0,0.00016712,2]
[327268412,1715952641340,-500.0,0.00016712,2]
[327268413,1715952641349,-10560.62,0.00016712,2]
[327268414,1715952641358,-500.0,0.00016712,2]
[327268415,1715952641367,-500.0,0.00016712,2]
[327268416,1715952641376,-167.41944615,0.00016712,2]
[327268417,1715952641385,-500.0,0.00016712,2]
[327268418,1715952641395,-500.0,0.00016712,2]
[327268419,1715952641404,-1093.66,0.00016712,2]
[327268420,1715952641414,-500.0,0.00016712,2]
[327268421,1715952641423,-625.57,0.00016712,2]
[327268422,1715952641432,-500.0,0.00016712,2]
[327268423,1715952641442,-500.0,0.00016712,2]
[327268424,1715952641451,-500.0,0.00016712,2]
[327268425,1715952641460,-488.83291104,0.00016712,2]
[327268426,1715952641470,-500.0,0.00016712,2]
[327268427,1715952641480,-254.2,0.0001689,3]
[327268428,1715952641489,-254.2,0.0001689,2]
[327268429,1715952641499,-150.0,0.0001689,3]
[327268430,1715952641509,-503.5,0.00016985,2]
[327268431,1715952641518,-500.0,0.00016986,2]
[327268432,1715952641528,-500.0,0.00016986,2]
[327268433,1715952641537,-500.0,0.00016986,2]
[327268434,1715952641546,-500.0,0.00016986,2]
[327268435,1715952641555,-500.0,0.00016986,2]
[327268436,1715952641565,-500.0,0.00016986,2]
[327268437,1715952641578,-572.65,0.00016986,2]
[327268438,1715952641588,-500.0,0.00016986,2]
[327268439,1715952641596,-500.0,0.00016986,2]
[327268440,1715952641605,-500.0,0.00016986,2]
[327268441,1715952641614,-500.0,0.00016986,2]
[327268442,1715952641623,-500.0,0.00016986,2]
[327268443,1715952641632,-1733.67,0.00016986,2]
[327268444,1715952641641,-500.0,0.00016986,2]
[327268445,1715952641651,-500.0,0.00016986,2]
[327268446,1715952641660,-500.0,0.00016986,2]
[327268447,1715952641669,-500.0,0.00016986,2]
[327268448,1715952641678,-1080.41,0.00016986,2]
[327268449,1715952641688,-500.0,0.00016986,2]
[327268450,1715952641697,-500.0,0.00016986,2]
[327268451,1715952641706,-500.0,0.00016986,2]
[327268452,1715952641716,-500.0,0.00016986,2]
[327268453,1715952641725,-258.6,0.00016986,2]
[327268454,1715952641734,-500.0,0.00016986,2]
[327268455,1715952641743,-500.0,0.00016986,2]
[327268456,1715952641752,-500.0,0.00016986,2]
[327268457,1715952641761,-5021.79,0.00016986,2]
[327268458,1715952641770,-500.0,0.00016986,2]
[327268459,1715952641779,-500.0,0.00016986,2]
[327268460,1715952641788,-500.0,0.00016986,2]
[327268461,1715952641797,-500.0,0.00016986,2]
[327268462,1715952641806,-500.0,0.00016986,2]
[327268463,1715952641815,-500.0,0.00016986,2]
[327268464,1715952641828,-500.0,0.00016986,2]
[327268465,1715952641836,-1342.19,0.00016986,2]
[327268466,1715952641846,-500.0,0.00016986,2]
[327268467,1715952641855,-500.0,0.00016986,2]
[327268468,1715952641863,-500.0,0.00016986,2]
[327268469,1715952641873,-577.84,0.00016986,2]
[327268470,1715952641883,-500.0,0.00016986,2]
[327268471,1715952641892,-4435.79,0.00016986,2]
[327268472,1715952641902,-500.0,0.00016986,2]
[327268473,1715952641911,-500.0,0.00016986,2]
[327268474,1715952641920,-10560.62,0.00016986,2]
[327268475,1715952641929,-500.0,0.00016986,2]
[327268476,1715952641939,-500.0,0.00016986,2]
[327268477,1715952641948,-1093.66,0.00016986,2]
[327268478,1715952641957,-500.0,0.00016986,2]
[327268479,1715952641967,-625.57,0.00016986,2]
[327268480,1715952641978,-500.0,0.00016986,2]
[327268481,1715952641987,-500.0,0.00016986,2]
[327268482,1715952641996,-500.0,0.00016986,2]
[327268483,1715952642006,-254.2,0.00017098,2]
[327268484,1715952642015,-500.0,0.00017149,2]
[327268485,1715952642025,-500.0,0.00017149,2]
[327268486,1715952642034,-500.0,0.0001726,2]
[327268487,1715952642160,-500.0,0.0001726,2]
[327268488,1715952642170,-500.0,0.0001726,2]
[327268489,1715952642179,-500.0,0.0001726,2]
[327268490,1715952642188,-500.0,0.0001726,2]
[327268491,1715952642203,-500.0,0.0001726,2]
[327268492,1715952642213,-1733.67,0.0001726,2]
[327268493,1715952642222,-560.44837896,0.0001726,2]
[327268494,1715952642232,-556.93,0.0001726,2]
[327268495,1715952642243,-631.41400365,0.0001726,2]
[327268496,1715952642252,-1080.41,0.0001726,2]
[327268497,1715952642262,-500.0,0.0001726,2]
[327268498,1715952642271,-500.0,0.0001726,2]
[327268499,1715952642282,-500.0,0.0001726,2]
[327268500,1715952642293,-500.0,0.0001726,2]
[327268501,1715952642302,-500.0,0.0001726,2]
[327268502,1715952642311,-500.0,0.0001726,2]
[327268503,1715952642322,-500.0,0.0001726,2]
[327268504,1715952642332,-5021.79,0.0001726,2]
[327268505,1715952642341,-500.0,0.0001726,2]
[327268506,1715952642350,-500.0,0.0001726,2]
[327268507,1715952642359,-500.0,0.0001726,2]
[327268508,1715952642369,-500.0,0.0001726,2]
[327268509,1715952642379,-500.0,0.0001726,2]
[327268510,1715952642389,-648.75,0.0001726,2]
[327268511,1715952642398,-1342.19,0.0001726,2]
[327268512,1715952642407,-500.0,0.0001726,2]
[327268515,1715952642416,-500.0,0.0001726,2]
[327268517,1715952642425,-577.84,0.0001726,2]
[327268519,1715952642434,-500.0,0.0001726,2]
[327268520,1715952642443,-4435.79,0.0001726,2]
[327268522,1715952642452,-500.0,0.0001726,2]
[327268523,1715952642461,-151.0,0.0001726,2]
[327268524,1715952642471,-500.0,0.0001726,2]
[327268525,1715952642481,-10560.62,0.0001726,2]
[327268526,1715952642491,-151.0,0.0001726,2]
[327268527,1715952642500,-251.956086,0.0001726,2]
[327268528,1715952642510,-151.0,0.0001726,2]
[327268529,1715952642519,-500.0,0.0001726,2]
[327268530,1715952642529,-186.979344,0.0001726,2]
[327268531,1715952642538,-1093.66,0.0001726,2]
[327268534,1715952642548,-500.0,0.0001726,2]
[327268538,1715952642558,-625.57,0.0001726,2]